Cogmind - Beta 13 @@@ ROGUE MODE // 2024.07.19 @ 00:11:45 Player: CeJaay Result: Destroyed by G-47 Trooper with Particle Gun Performance ------------- Evolutions (3) 1500 Regions Visited (6) 1200 Robots Destroyed (53) 265 Value Destroyed (1774) 1774 Prototype IDs (1) 20 Alien Tech Used (0) 0 Bonus (557) 557 TOTAL SCORE: 5316 Bonus ------- High Alert Combat Kills 57 Entered DSFs 500 Cogmind --------- Core Integrity 0/700 Matter 280/300 Energy 69/100 System Corruption 0% Temperature Cool (9) Movement Walking (130) Location -7/DSF Parts ------- > --- POWER (2) -------- (None) > --- PROPULSION (2) --- Improved Titanium Leg Improved Titanium Leg > --- UTILITY (5) ------ (None) > --- WEAPON (4) ------- (None) > --- INVENTORY (5) ---- Recoil Stabilizer Matter Filter Weapon Cycler Improved Shield Generator Peak State ------------ > --- POWER ------------ Improved Ion Engine Light Nuclear Core > --- PROPULSION ------- Carbon-fiber Leg Improved Carbon-fiber Leg > --- UTILITY ---------- Improved Heat Sink Small Storage Unit Small Battery Improved Targeting Computer Improved Light Armor Plating > --- WEAPON ----------- Heavy Laser Light Assault Rifle Heavy Assault Rifle Gauss Rifle > --- INVENTORY -------- Improved Aluminum Leg Recoil Stabilizer Matter Filter Weapon Cycler Improved Light Armor Plating Improved Light Armor Plating Improved Shield Generator Gauss Rifle [Rating: 35] Favorites ----------- Power Ion Engine Engine Ion Engine Power Core Light Nuclear Core Propulsion Aluminum Leg Leg Aluminum Leg Flight Unit VTOL Module Utility Small Storage Unit Device Improved Heat Sink Storage Small Storage Unit Processor Improved Targeting Computer Protection Improved Light Armor Plating Weapon Light Assault Rifle Energy Gun Medium Laser Ballistic Gun Light Assault Rifle Build | -11 -10 -9 -9 -8 -7 -7 ------- Run | Yrd Mat Mat Min Mat Fac DSF Slots Evolved 6 | . . 2 . 2 2 . Power 1 | . . . . . 1 . Propulsion . | . . . . . . . Utility 3 | . . . . 2 1 . Weapon 2 | . . 2 . . . . Parts Attached 69 | 6 5 2 5 28 2 21 Power 10 | 1 1 . . 6 1 1 Engine 6 | 1 1 . . 4 . . Core 4 | . . . . 2 1 1 Reactor . | . . . . . . . Propulsion 18 | 2 2 . 2 5 . 7 Treads . | . . . . . . . Leg 17 | 2 2 . 2 5 . 6 Wheel . | . . . . . . . Hover . | . . . . . . . Flight 1 | . . . . . . 1 Utility 14 | 1 1 . 1 6 1 4 Device 3 | . 1 . . 2 . . Storage 2 | 1 . . . . 1 . Processor 1 | . . . . 1 . . Hackware . | . . . . . . . Protection 8 | . . . 1 3 . 4 Artifact . | . . . . . . . Weapon 27 | 2 1 2 2 11 . 9 Energy Gun 12 | . 1 . . 5 . 6 Energy Cannon . | . . . . . . . Ballistic Gun 15 | 2 . 2 2 6 . 3 Ballistic Cannon . | . . . . . . . Launcher . | . . . . . . . Special Weapon . | . . . . . . . Impact Weapon . | . . . . . . . Slashing Weapon . | . . . . . . . Piercing Weapon . | . . . . . . . Special Melee Weapon . | . . . . . . . Unidentified Prototypes 1 | . . . . 1 . . Parts Lost 29 | . 3 . . . . 26 Power 4 | . 1 . . . . 3 Propulsion 7 | . 1 . . . . 6 Utility 5 | . . . . . . 5 Weapon 13 | . 1 . . . . 12 Highest Loss Streak 14 | . 3 . . . . 14 To Critical Strikes . | . . . . . . . Average Slot Usage (%) 95 | . 98 100 100 99 100 69 Engine 8 | . 13 11 11 5 7 3 Core 2 | . . . . 3 7 3 Leg 19 | . 28 22 22 17 15 11 Device 7 | . 13 11 1 9 7 4 Storage 11 | . 14 11 11 9 15 12 Processor 4 | . . . . 9 7 6 Protection 6 | . . . 9 9 7 5 Energy Gun 8 | . 3 11 11 11 7 8 Ballistic Gun 24 | . 24 33 33 23 23 11 Naked Turns 13 | . . . . . . 13 Heaviest Build 34 | 11 15 17 20 29 31 34 Greatest Support 40 | 20 20 20 20 25 25 40 Greatest Overweight (x) 5 | . . . . 1 1 5 Average Overweight (x) . | . . . . . 1 . Largest Inventory Capacity 8 | 8 8 8 8 8 8 8 Average Capacity 7 | 7 8 8 8 8 8 7 Most Carried 8 | 3 8 7 8 8 8 8 Average Carried 6 | 1 6 6 7 7 7 6 Final Capacity 8 | 8 8 8 8 8 8 5 Final Carried 8 | 3 8 6 8 8 8 4 Class Distribution -------------------- 50% | Scavenger-Gunner 27% | Mutant 17% | Scavenger-Tank Dominant Class ---------------- Mutant | -10/Materials Scavenger-Gunner | -9/Materials Scavenger-Tank | -9/Mines Scavenger-Gunner | -8/Materials Scavenger-Gunner | -7/Factory Scavenger-Gunner | -7/DSF Resources | -11 -10 -9 -9 -8 -7 -7 ----------- Run | Yrd Mat Mat Min Mat Fac DSF Matter Collected 1531 | 304 138 29 101 693 . 266 Remotely . | . . . . . . . Salvage Created 2169 | 109 171 49 139 1222 . 479 Parts 137 | 5 20 2 11 68 . 31 Haulers Intercepted . | . . . . . . . Recyclers Shooed 1 | . . . . 1 . . Parts Field Recycled . | . . . . . . . Retrieved Matter . | . . . . . . . Parts Self-Destructed . | . . . . . . . Prevented . | . . . . . . . Kills | -11 -10 -9 -9 -8 -7 -7 ------- Run | Yrd Mat Mat Min Mat Fac DSF Combat Hostiles Destroyed 47 | . 9 1 6 23 . 8 Guns 47 | . 9 1 6 23 . 8 Classes Destroyed 11 | 3 2 . . 4 . 2 Worker 1 | 1 . . . . . . Tunneler 2 | 1 . . . 1 . . Recycler 2 | 1 . . . 1 . . Watcher 1 | . . . . 1 . . Swarmer 14 | . 7 . 4 3 . . Grunt 22 | . 2 1 2 12 . 5 Duelist 1 | . . . . 1 . . Sentry 5 | . . . . 5 . . Specialist 2 | . . . . . . 2 Hunter 2 | . . . . 2 . . Heavy 1 | . . . . . . 1 Best Kill Streak 9 | 2 4 1 4 9 . 3 Combat Bots Only 8 | . 4 1 4 8 . 3 Max Kills in Single Turn 2 | 1 1 1 1 2 . 2 Gunslinging 1 | . . . . . . 1 Exploded . | . . . . . . . Melee . | . . . . . . . Uniques/NPCs Destroyed . | . . . . . . . Combat | -11 -10 -9 -9 -8 -7 -7 -------- Run | Yrd Mat Mat Min Mat Fac DSF Hostile Shots Fired 451 | . 68 4 33 105 . 241 Missed 124 | . 20 3 10 31 . 60 Damage Taken 5138 | . 420 11 205 1038 . 3464 Core 960 | . 87 . 30 132 . 711 Absorbed by Shields . | . . . . . . . Core Remaining (%) 83 | 100 65 . 92 76 . . Volleys Fired 158 | 13 29 3 13 66 . 34 Largest 4 | 2 2 4 4 4 . 4 Hottest 218 | 40 70 110 113 173 . 218 Shots Fired 478 | 26 56 12 52 244 . 88 Gun 478 | 26 56 12 52 244 . 88 Cannon . | . . . . . . . Launcher . | . . . . . . . Special . | . . . . . . . Kinetic 352 | 26 51 9 39 177 . 50 Thermal 118 | . 5 3 13 67 . 30 Explosive . | . . . . . . . Electromagnetic 8 | . . . . . . 8 Robot Hit Streak 18 | 3 7 2 5 18 . 9 Robot Miss Streak 5 | 3 3 1 5 4 . 3 Penetration Max 1 | . . . . 1 . . Secondary Targets 9 | . 1 . 3 4 . 1 Max Gunslinging Chain 1 | . 1 . 1 1 . 1 Shots Hit Robots 295 | 13 30 6 26 151 . 69 Core Hits 115 | 6 13 2 11 64 . 19 Critical Kills 2 | . . . . 1 . 1 Critical Parts Destroyed 3 | . . . . 3 . . Critical Strikes 8 | . . . 1 5 . 2 Burn 3 | . . . 1 1 . 1 Destroy 5 | . . . . 4 . 1 Melee Attacks . | . . . . . . . Impact . | . . . . . . . Slashing . | . . . . . . . Piercing . | . . . . . . . Sneak Attacks . | . . . . . . . Combat Hostiles . | . . . . . . . Follow-up Attacks . | . . . . . . . Damage Inflicted 3914 | 141 311 54 291 2049 . 1068 Guns 3895 | 141 311 54 291 2043 . 1055 Cannons . | . . . . . . . Explosions . | . . . . . . . Melee . | . . . . . . . Ramming 19 | . . . . 6 . 13 Kinetic 2616 | 141 274 41 189 1403 . 568 Thermal 1197 | . 37 13 102 640 . 405 Explosive . | . . . . . . . Electromagnetic 82 | . . . . . . 82 Impact . | . . . . . . . Slashing . | . . . . . . . Piercing . | . . . . . . . Highest Corruption 2 | . 2 . . 1 . . Average Corruption 1 | . 2 . . 1 . . Corruption Purged . | . . . . . . . Corruption Blocked . | . . . . . . . Effects 3 | . . . . 3 . . Matter Fused 1 | . . . . 1 . . Heat Flow Errors 1 | . . . . 1 . . Misfires 1 | . . . . 1 . . Overload Shots . | . . . . . . . Overflow Damage . | . . . . . . . Projectiles . | . . . . . . . Explosions . | . . . . . . . Melee . | . . . . . . . Knockbacks . | . . . . . . . Impact . | . . . . . . . Kinetic . | . . . . . . . Secondary . | . . . . . . . Self-Inflicted Damage . | . . . . . . . Shots . | . . . . . . . Rammed 2 | . . . . . . 2 Targets Rammed 9 | . . . . 3 . 6 Kicked 7 | . . . . 3 . 4 Crushed . | . . . . . . . Highest Temperature 568 | . 40 169 370 568 . 63 Average Temperature 119 | . 15 85 170 122 . 22 Received Heat Transfer 1671 | . 36 6 27 405 . 1197 Effects 9 | . . . 5 4 . . Shutdowns 1 | . . . . 1 . . Energy Bleed 1 | . . . 1 . . . Interference 5 | . . . 4 1 . . Matter Decay 2 | . . . . 2 . . Siege Activations . | . . . . . . . Robots Corrupted . | . . . . . . . Combat Hostiles . | . . . . . . . Parts Fried . | . . . . . . . Impact Corruptions . | . . . . . . . Robots Melted . | . . . . . . . Combat Hostiles . | . . . . . . . Parts Melted . | . . . . . . . Heat Transferred 3108 | . 111 37 370 1665 . 925 Parts Sabotaged . | . . . . . . . Parts Stolen . | . . . . . . . Parts Stripped . | . . . . . . . Power Chain Reactions . | . . . . . . . Alert | -11 -10 -9 -9 -8 -7 -7 ------- Run | Yrd Mat Mat Min Mat Fac DSF Peak Influence 547 | 15 159 85 188 547 190 268 Initial 180 | . 9 35 33 . 180 133 Average 160 | 4 81 48 59 309 183 183 Maximum Alert Level 2 | . . . . 2 . 1 Low Security (%) 73 | 100 100 100 100 22 100 64 Level 1 15 | . . . . 38 . 35 Level 2 10 | . . . . 38 . . Level 3 . | . . . . . . . Level 4 . | . . . . . . . Level 5 . | . . . . . . . High Security . | . . . . . . . Max Security . | . . . . . . . Squads Dispatched 4 | . 1 . . 1 . 2 Investigation . | . . . . . . . Extermination . | . . . . . . . Reinforcement 4 | . 1 . . 1 . 2 Assault . | . . . . . . . Garrison . | . . . . . . . Intercept . | . . . . . . . Searches Triggered . | . . . . . . . Construction Impeded . | . . . . . . . Haulers Reinforced . | . . . . . . . Active Scanning Responses . | . . . . . . . Cargo Convoy Interrupts . | . . . . . . . Stealth | -11 -10 -9 -9 -8 -7 -7 --------- Run | Yrd Mat Mat Min Mat Fac DSF Distress Signals 5 | . 1 . . 4 . . Communications Jammed . | . . . . . . . Distress Signals . | . . . . . . . Times Spotted 80 | . 17 1 8 34 . 20 Peak Tracking Total 7 | . 7 1 4 6 . 7 Tactical Retreats 7 | . 2 . . 2 . 3 Traps | -11 -10 -9 -9 -8 -7 -7 ------- Run | Yrd Mat Mat Min Mat Fac DSF Traps Triggered 2 | . 1 . . 1 . . Indirectly . | . . . . . . . Trap Hack Attempts . | . . . . . . . Triggered . | . . . . . . . Disarmed . | . . . . . . . Reprogrammed . | . . . . . . . Reused . | . . . . . . . Traps Extracted . | . . . . . . . Installed . | . . . . . . . Triggered . | . . . . . . . Machines | -11 -10 -9 -9 -8 -7 -7 ---------- Run | Yrd Mat Mat Min Mat Fac DSF Machines Disabled 3 | . . . . 2 . 1 Max in Single Turn 1 | . . . . 1 . 1 Machines Repaired . | . . . . . . . Machines Dismantled . | . . . . . . . Machines Sabotaged . | . . . . . . . Overloaded Fab Kills . | . . . . . . . Hacking | -11 -10 -9 -9 -8 -7 -7 --------- Run | Yrd Mat Mat Min Mat Fac DSF Machines Accessed 7 | . 1 1 . 2 3 . Terminals 7 | . 1 1 . 2 3 . Fabricators . | . . . . . . . Repair Stations . | . . . . . . . Recycling Units . | . . . . . . . Scanalyzers . | . . . . . . . Garrison Access . | . . . . . . . Total Hacks 12 | . 1 1 . 2 8 . Successful 10 | . 1 1 . 2 6 . Failed 2 | . . . . . 2 . Catastrophic . | . . . . . . . Database Lockouts . | . . . . . . . Manual . | . . . . . . . Terminals 12 | . 1 1 . 2 8 . Fabricators . | . . . . . . . Repair Stations . | . . . . . . . Recycling Units . | . . . . . . . Scanalyzers . | . . . . . . . Garrison Access . | . . . . . . . Terminal Hacks 10 | . 1 1 . 2 6 . Record 5 | . . . . 2 3 . Open DSF 1 | . . . . . 1 . Alert Level 2 | . . 1 . . 1 . Locate Traps 2 | . 1 . . . 1 . Fabricator Hacks . | . . . . . . . Repair Station Hacks . | . . . . . . . Recycling Unit Hacks . | . . . . . . . Scanalyzer . | . . . . . . . Garrison Access Hacks . | . . . . . . . Unauthorized Hacks . | . . . . . . . Terminals . | . . . . . . . Fabricators . | . . . . . . . Repair Stations . | . . . . . . . Recycling Units . | . . . . . . . Scanalyzers . | . . . . . . . Garrison Access . | . . . . . . . Data Cores Recovered . | . . . . . . . Used . | . . . . . . . Hacking Detections . | . . . . . . . Full Trace Events . | . . . . . . . Feedback Events . | . . . . . . . Feedback Blocked . | . . . . . . . Robot Schematics Acquired . | . . . . . . . Robots Built . | . . . . . . . Authchips . | . . . . . . . Time . | . . . . . . . Total Robot Build Rating . | . . . . . . . Part Schematics Acquired . | . . . . . . . Parts Built . | . . . . . . . Authchips . | . . . . . . . Time . | . . . . . . . Total Part Build Rating . | . . . . . . . Parts Repaired . | . . . . . . . Time . | . . . . . . . Parts Recycled . | . . . . . . . Recycled Matter . | . . . . . . . Retrieved Matter . | . . . . . . . Retrieved Components . | . . . . . . . Parts Scanalyzed . | . . . . . . . Part Schematics Acquired . | . . . . . . . Parts Damaged . | . . . . . . . Bothacking | -11 -10 -9 -9 -8 -7 -7 ------------ Run | Yrd Mat Mat Min Mat Fac DSF Used RIF Installer . | . . . . . . . Robots Hacked . | . . . . . . . Non-combat . | . . . . . . . Combat . | . . . . . . . Robot Hacks Applied . | . . . . . . . Relay Couplers Released . | . . . . . . . Fabnet Peak Effective % . | . . . . . . . Robots Rewired . | . . . . . . . Allies Hacked . | . . . . . . . Hacks Repelled . | . . . . . . . Allies | -11 -10 -9 -9 -8 -7 -7 -------- Run | Yrd Mat Mat Min Mat Fac DSF Total Allies . | . . . . . . . Largest Group . | . . . . . . . Highest-Rated Group . | . . . . . . . Highest-Rated Ally . | . . . . . . . Total Orders . | . . . . . . . Ally Attacks . | . . . . . . . Total Damage . | . . . . . . . Kills . | . . . . . . . Allies Corrupted . | . . . . . . . Allies Melted . | . . . . . . . Intel | -11 -10 -9 -9 -8 -7 -7 ------- Run | Yrd Mat Mat Min Mat Fac DSF Robot Analysis Total . | . . . . . . . Derelict Logs Recovered 2 | . . . 2 . . . Drone Launches . | . . . . . . . Drone Recoveries . | . . . . . . . Exploration | -11 -10 -9 -9 -8 -7 -7 ------------- Run | Yrd Mat Mat Min Mat Fac DSF Turns Passed 2911 | 136 589 104 571 814 313 384 Spaces Moved 1591 | 72 381 77 397 362 160 142 Core 48 | 8 . . . . . 40 Treads . | . . . . . . . Legs 1539 | 64 381 77 397 362 160 98 Wheels . | . . . . . . . Hover . | . . . . . . . Flight 4 | . . . . . . 4 Fastest Speed 35 | 50 120 120 120 120 190 35 Average Speed 134 | 112 120 120 120 148 190 137 Slowest Speed 300 | 120 120 120 120 190 190 300 Overloaded Moves . | . . . . . . . Propulsion Burnouts . | . . . . . . . Robots Hopped . | . . . . . . . Cave-ins Triggered . | . . . . . . . Exploration Rate (%) 35 | 5 58 14 66 25 5 72 Regions Visited 6 Branch Regions 1 Pre-discovered Areas . | . . . . . . . Known Exits Taken 2 | . . . . 1 1 . Unknown Exits Taken 4 | 1 1 1 1 . . . Scrap Searched 1 | . . . 1 . . . Spaces Dug . | . . . . . . . Terrain Destroyed . | . . . . . . . Melee . | . . . . . . . Projectile . | . . . . . . . AOE . | . . . . . . . Terrain Rammed . | . . . . . . . Walls Destroyed . | . . . . . . . Machines Disabled . | . . . . . . . Actions | -11 -10 -9 -9 -8 -7 -7 --------- Run | Yrd Mat Mat Min Mat Fac DSF Total 2053 | 104 462 83 469 503 169 263 Wait 139 | 5 39 2 40 3 6 44 Move 1585 | 71 380 76 396 361 159 142 Hop . | . . . . . . . Pick Up 51 | 9 9 . 7 13 2 11 Fast Attach 11 | . . . . 6 . 5 Attach 37 | 6 4 2 1 7 2 15 Detach . | . . . . . . . Swap 21 | . 1 . 4 15 . 1 Drop 42 | . . . 8 29 . 5 Fire 158 | 13 29 3 13 66 . 34 Melee . | . . . . . . . Ram 2 | . . . . . . 2 Kick 7 | . . . . 3 . 4 Crush . | . . . . . . . Escape Stasis . | . . . . . . . Rewire . | . . . . . . . Trap . | . . . . . . . Miscellaneous . | . . . . . . . Route ------- -11/Scrapyard -10/Materials (discovered 2 exits: *Mat x2) -9/Materials -9/Mines -8/Materials -7/Factory (discovered 2 exits: Sto / DSF) -7/DSF (discovered 1 exit: [*Fac]) History --------- Turn | Location | Event 18 | -11/Scrapyard | Discovered new exit (range 16) 137 | -11/Scrapyard | Entered Materials 316 | -10/Materials | Build established: Mutant 320 | -10/Materials | Discovered new exit (range 11) 621 | -10/Materials | Lost 3 parts (1p1n1w) 708 | -10/Materials | Discovered new exit (range 13) 726 | -10/Materials | Entered another Materials area 726 | -9/Materials | Evolved 2 slots: Weapon x2 823 | -9/Materials | Discovered new exit (range 7) 830 | -9/Materials | Entered Mines 834 | -9/Mines | Joined a pair of Derelicts in attacking an 0b10 outpost 1197 | -9/Mines | Build established: Scavenger-Tank 1330 | -9/Mines | Discovered new exit (range 9) 1401 | -9/Mines | Entered Materials 1401 | -8/Materials | Evolved 2 slots: Utility x2 1402 | -8/Materials | Identified exit to Factory 1632 | -8/Materials | Destroyed 8 combat bots 1723 | -8/Materials | Build established: Scavenger-Gunner 2215 | -8/Materials | Entered Factory 2215 | -7/Factory | Evolved 2 slots: Power x1, Utility x1 2216 | -7/Factory | Identified exit to Storage 2528 | -7/Factory | Identified exit to DSF 2528 | -7/Factory | Entered DSF 2557 | -7/DSF | Additional patrols routed to DSF 2796 | -7/DSF | Lost 10 parts (2p1n2u5w) 2846 | -7/DSF | Core integrity fell below 50% 2858 | -7/DSF | Core integrity fell below 20% 2890 | -7/DSF | Lost 14 parts (1p4n3u6w) 2898 | -7/DSF | Discovered new exit (range 15) 2912 | -7/DSF | Destroyed by G-47 Trooper with Particle Gun Last Messages --------------- EM Shotgun destroyed. Acquired Lgt. Nuclear Core. Lgt. Nuclear Core destroyed. Acquired Autogun. Sml. Storage Unit destroyed. Critical hit (Burn: +37). Autogun destroyed. Critical hit (Burn: +37). Acquired VTOL Module. Acquired 23 matter. VTOL Module destroyed. Acquired Lyr. Medium Armor Plating. Slammed into S-27 Virus. Acquired 15 matter. Critical hit (Burn: +37). Dropped Lyr. Medium Armor Plating. Discarded Imp. Targeting Computer. A-02 Transporter destroyed. EXIT=FOUND Acquired Imp. Titanium Leg. Map ----- +----------------------------------------------------+ | | | | | | | | | | | | | | | | | | | | | | | | | | | | | | | | | ??????????????????????????????????????????????? | | ??????????????????????????????????????????????? | | ??????????????????????????????????????????????? | | ??????????????????????????????????????????????? | | ??????????????????????????????????????????????? | | ??????????????????????????????????????????????? | | ?????????????????#########????????????????????? | | ?????????????###?#!! ########???"?????????? | | ???????""##]]# #!! #===#==##"""""#??????? | | ?????"< @ ""#??????? | | ?????" gg s """??????? | | ?????" ??#]]#]]]### g### =#==## ""#??????? | | ?????# ?????????### ###===#?=#?????#???????? | | ?????# ?????????# #####??#?????????????? | | ?????] ?????????# #????????????????????? | | ?????] ?????????# #????????????????????? | | ????## #????????### ###????????????????????? | | ????#] ]????????#!! !!#????????????????????? | | ????#] ]????????#!! !!#????????????????????? | | ?????] ]????????#!! !!#????????????????????? | | ???### "############=! ###????????????????????? | | ???# "%##===#!!!###%! ##???!#????????????????? | | ???# "##===#!!!##=% ##!!!#]]]##???????????? | | ???#!! " ?????????? | | ???#!!%*! [ ! ?????????? | | ???#!! !%!% ! "%" ?????????? | | ???#!! !#! # !!## ! ##!!!# ## ??????????? | | ???#!! ## [# !!### ##?!!!#?? #????????????? | | ???### ##########?# ###?###????????????????? | | ????#[ %=%#???????! !!?????????????????????? | | ????#[ *[[##???????! !!#????????????????????? | | ????#[ %%[#????????! !!#????????????????????? | | ????## ###???????## ###????????????????????? | | ????# ^[ #????????! !!#????????????????????? | +----------------------------------------------------+ Best States ------------- Heat Dissipation 48 Energy Generation 21 Energy Capacity 425 Matter Stores 300 Matter Capacity 300 Sight Range 16 Terrain Scan Density 10 ECM Strength 1 Armor Coverage 450 Evasion (%) 55 Targeting Accuracy 6 Item Schematics ----------------- None Robot Schematics ------------------ None Fabricated ------------ Nothing Alien Tech Used ----------------- None Achievements -------------- None Challenges ------------ None Game ------ Seed WeaponAutogunCanceller Manual? 0 Play Time 00:35:30 Cumulative 9.1 hours Start 2024.07.18 @ 23:35:42 End 2024.07.19 @ 00:11:45 Sessions 1 Manual Loads 0 Difficulty Rogue Special Mode None Game No. 13 Rogue 13 Adventurer 0 Explorer 0 Win Type - Total 0 Types 0/0/0/0/0/0/0/0/0 Lore% 13 Gallery% 16 Achievement% 11 Wizard Run 0 Options --------- Layout 2 ASCII 0 Keyboard 0 Movement Mouse Keybinds 0 Fullscreen 2 Font 24/Smallcaps Map View 50x44 Zoom Use 0% Tactical HUD 0 Map Filters NONE Filters NONE Steam 1 RUN: 5d632cb9-fcf7-4238-9c59-96a4fef3ab0e